[Event "*** SCC Grand Prix: Titled Tuesday Blitz"]
[Site "Chess.com"]
[Date "2020.07.21"]
[Round "6"]
[White "BJthechessgod"]
[Black "MisiekZielony"]
[Result "0-1"]
[WhiteElo "2309"]
[BlackElo "2252"]
[TimeControl "180+1"]
[EndTime "11:06:55 PDT"]
[Termination "MisiekZielony won by resignation"]

1. e4 {[%clk 0:02:58.5]} 1... Nf6 {[%clk 0:02:59.7]} 2. e5 {[%clk 0:02:56.6]}
2... Nd5 {[%clk 0:02:59.7]} 3. d4 {[%clk 0:02:55.8]} 3... d6 {[%clk 0:03:00]} 4.
Nf3 {[%clk 0:02:55.8]} 4... Bg4 {[%clk 0:02:59.8]} 5. Be2 {[%clk 0:02:51.9]}
5... e6 {[%clk 0:02:59.6]} 6. O-O {[%clk 0:02:50.5]} 6... Be7 {[%clk 0:02:59.5]}
7. c4 {[%clk 0:02:45.8]} 7... Nb6 {[%clk 0:02:58.5]} 8. Nc3 {[%clk 0:02:43.4]}
8... O-O {[%clk 0:02:57.9]} 9. h3 {[%clk 0:02:40.1]} 9... Bh5 {[%clk 0:02:57.4]}
10. b3 {[%clk 0:02:36]} 10... a6 {[%clk 0:02:55.8]} 11. Be3 {[%clk 0:02:34.8]}
11... d5 {[%clk 0:02:46.2]} 12. c5 {[%clk 0:02:32.1]} 12... N6d7 {[%clk
0:02:46]} 13. g4 {[%clk 0:02:18.3]} 13... Bg6 {[%clk 0:02:45.4]} 14. Nd2 {[%clk
0:02:18.9]} 14... f5 {[%clk 0:02:37.6]} 15. f4 {[%clk 0:02:12.6]} 15... Nc6
{[%clk 0:02:37.3]} 16. g5 {[%clk 0:02:10.7]} 16... Nxc5 {[%clk 0:02:33.2]} 17.
dxc5 {[%clk 0:01:58.5]} 17... d4 {[%clk 0:02:32.8]} 18. Bc4 {[%clk 0:01:54]}
18... dxe3 {[%clk 0:01:31.1]} 19. Bxe6+ {[%clk 0:01:53.2]} 19... Kh8 {[%clk
0:01:30.4]} 20. Nc4 {[%clk 0:01:46.4]} 20... Qxd1 {[%clk 0:01:21]} 21. Raxd1
{[%clk 0:01:44.2]} 21... Bxc5 {[%clk 0:01:20.8]} 22. Kg2 {[%clk 0:01:44.3]}
22... Bh5 {[%clk 0:01:10.6]} 23. Rd7 {[%clk 0:01:33.9]} 23... e2 {[%clk
0:01:03.8]} 24. Re1 {[%clk 0:01:34.1]} 24... Bb4 {[%clk 0:00:48]} 25. Rd3 {[%clk
0:01:25.2]} 25... Rad8 {[%clk 0:00:46.6]} 26. Bd5 {[%clk 0:01:24.5]} 26... Bxc3
{[%clk 0:00:42.8]} 27. Rxc3 {[%clk 0:01:20.3]} 27... Rxd5 {[%clk 0:00:43.3]} 28.
Ne3 {[%clk 0:01:14.1]} 28... Rd2 {[%clk 0:00:39.5]} 29. Kf2 {[%clk 0:01:04.7]}
29... Rfd8 {[%clk 0:00:38]} 30. Nxf5 {[%clk 0:01:00.5]} 30... Rd1 {[%clk
0:00:37.4]} 31. Re3 {[%clk 0:00:57.5]} 31... Rxe1 {[%clk 0:00:36.8]} 32. Kxe1
{[%clk 0:00:58.4]} 32... Rd1+ {[%clk 0:00:36.8]} 33. Kf2 {[%clk 0:00:59]} 33...
Rf1+ {[%clk 0:00:36.7]} 34. Kg2 {[%clk 0:00:57.7]} 34... e1=Q {[%clk 0:00:37.2]}
35. Rxe1 {[%clk 0:00:53.8]} 35... Rxe1 {[%clk 0:00:37.2]} 36. Ng3 {[%clk
0:00:51.5]} 36... Bf7 {[%clk 0:00:36.5]} 37. Kf3 {[%clk 0:00:50.1]} 37... g6
{[%clk 0:00:35.7]} 38. Kf2 {[%clk 0:00:43.3]} 38... Ra1 {[%clk 0:00:35.2]} 39.
Ke3 {[%clk 0:00:41.6]} 39... Rxa2 {[%clk 0:00:33.5]} 40. h4 {[%clk 0:00:41.9]}
40... Rb2 {[%clk 0:00:32.6]} 41. h5 {[%clk 0:00:42.1]} 41... Rxb3+ {[%clk
0:00:32.6]} 42. Kf2 {[%clk 0:00:42.6]} 42... Rxg3 {[%clk 0:00:32.9]} 43. Kxg3
{[%clk 0:00:42.3]} 43... Nd4 {[%clk 0:00:33]} 44. h6 {[%clk 0:00:37.8]} 44...
Be6 {[%clk 0:00:32.9]} 45. Kf2 {[%clk 0:00:38.2]} 45... a5 {[%clk 0:00:32.8]}
46. Ke3 {[%clk 0:00:39.1]} 46... Nf5+ {[%clk 0:00:33]} 47. Kd3 {[%clk 0:00:39]}
47... a4 {[%clk 0:00:33.3]} 48. Kc3 {[%clk 0:00:39.4]} 48... c5 {[%clk
0:00:32.2]} 49. Kb2 {[%clk 0:00:39]} 49... b5 {[%clk 0:00:32.7]} 50. Ka3 {[%clk
0:00:39.6]} 50... Kg8 {[%clk 0:00:32.6]} 51. Kb2 {[%clk 0:00:39.8]} 51... b4
{[%clk 0:00:32.9]} 52. Ka1 {[%clk 0:00:39.5]} 52... a3 {[%clk 0:00:33.3]} 53.
Kb1 {[%clk 0:00:40.4]} 53... b3 {[%clk 0:00:33.3]} 54. Ka1 {[%clk 0:00:41.3]}
54... Bd5 {[%clk 0:00:31.6]} 55. Kb1 {[%clk 0:00:42.2]} 55... Be4+ {[%clk
0:00:31.4]} 56. Ka1 {[%clk 0:00:43.1]} 56... b2+ {[%clk 0:00:30.4]} 57. Ka2
{[%clk 0:00:44]} 57... b1=Q+ {[%clk 0:00:30.6]} 58. Kxa3 {[%clk 0:00:44.9]}
58... Qb4+ {[%clk 0:00:28.1]} 59. Ka2 {[%clk 0:00:45]} 0-1

[Event "*** SCC Grand Prix: Titled Tuesday Blitz"]
[Site "Chess.com"]
[Date "2020.07.21"]
[Round "6"]
[White "Angel_Hranitel_37"]
[Black "FMOlexandrProhorov"]
[Result "1-0"]
[WhiteElo "2379"]
[BlackElo "2128"]
[TimeControl "180+1"]
[EndTime "11:06:57 PDT"]
[Termination "Angel_Hranitel_37 won by resignation"]

1. d4 {[%clk 0:03:00.9]} 1... g6 {[%clk 0:02:58.9]} 2. Nf3 {[%clk 0:03:00.7]}
2... Bg7 {[%clk 0:02:59.5]} 3. g3 {[%clk 0:03:01.6]} 3... f5 {[%clk 0:02:58.8]}
4. Bg2 {[%clk 0:03:02.5]} 4... Nf6 {[%clk 0:02:59.1]} 5. O-O {[%clk 0:03:02.3]}
5... O-O {[%clk 0:03:00]} 6. c4 {[%clk 0:03:02.3]} 6... d6 {[%clk 0:03:00.9]} 7.
Nc3 {[%clk 0:03:01.8]} 7... Qe8 {[%clk 0:03:01.5]} 8. Re1 {[%clk 0:03:01.8]}
8... e5 {[%clk 0:03:00.9]} 9. e4 {[%clk 0:02:31]} 9... f4 {[%clk 0:02:51.9]} 10.
dxe5 {[%clk 0:01:51.5]} 10... dxe5 {[%clk 0:02:48.2]} 11. Nd5 {[%clk 0:01:44.2]}
11... Nxd5 {[%clk 0:02:05.5]} 12. exd5 {[%clk 0:01:44.2]} 12... Bg4 {[%clk
0:01:58.1]} 13. h3 {[%clk 0:01:42.5]} 13... Bxf3 {[%clk 0:01:56.9]} 14. Qxf3
{[%clk 0:01:41.8]} 14... Nd7 {[%clk 0:01:40.7]} 15. gxf4 {[%clk 0:01:40.5]}
15... Qf7 {[%clk 0:01:37.7]} 16. d6 {[%clk 0:00:50.3]} 16... exf4 {[%clk
0:01:22.4]} 17. Re7 {[%clk 0:00:39.7]} 17... Qf5 {[%clk 0:01:12.3]} 18. Qd5+
{[%clk 0:00:40]} 18... Kh8 {[%clk 0:01:06.4]} 19. Qxf5 {[%clk 0:00:39.6]} 19...
Rxf5 {[%clk 0:01:04.3]} 20. Rxd7 {[%clk 0:00:40.1]} 20... f3 {[%clk 0:01:03.4]}
21. Bf1 {[%clk 0:00:40.1]} 21... cxd6 {[%clk 0:01:03.3]} 22. Rxd6 {[%clk
0:00:37.7]} 22... Re8 {[%clk 0:01:03]} 23. Be3 {[%clk 0:00:37.6]} 23... Bxb2
{[%clk 0:01:01.6]} 24. Rb1 {[%clk 0:00:38]} 24... Be5 {[%clk 0:01:01]} 25. Rd7
{[%clk 0:00:36.5]} 25... b6 {[%clk 0:00:52.1]} 26. Rxa7 {[%clk 0:00:36.5]} 26...
g5 {[%clk 0:00:45]} 27. Bd3 {[%clk 0:00:33]} 27... Rf6 {[%clk 0:00:40]} 28.
Rxh7+ {[%clk 0:00:32.8]} 28... Kg8 {[%clk 0:00:40.2]} 29. Rb7 {[%clk 0:00:22.2]}
29... g4 {[%clk 0:00:39.4]} 30. hxg4 {[%clk 0:00:19]} 30... Bf4 {[%clk
0:00:29.3]} 31. Bxf4 {[%clk 0:00:17.8]} 31... Rxf4 {[%clk 0:00:30.1]} 32. Bf5
{[%clk 0:00:14]} 32... Rxc4 {[%clk 0:00:29.8]} 33. R1xb6 {[%clk 0:00:13]} 33...
Rc1+ {[%clk 0:00:28.3]} 34. Kh2 {[%clk 0:00:13.2]} 34... Ree1 {[%clk 0:00:22.9]}
35. Kg3 {[%clk 0:00:11.6]} 35... Rg1+ {[%clk 0:00:20.9]} 36. Kxf3 {[%clk
0:00:12.1]} 36... Rc3+ {[%clk 0:00:20.7]} 37. Kf4 {[%clk 0:00:12.5]} 37... Rc4+
{[%clk 0:00:19.8]} 38. Kg5 {[%clk 0:00:13]} 38... Rd1 {[%clk 0:00:13.9]} 39.
Rb8+ {[%clk 0:00:13.9]} 39... Kf7 {[%clk 0:00:13.9]} 40. R6b7+ {[%clk
0:00:14.2]} 1-0

[Event "*** SCC Grand Prix: Titled Tuesday Blitz"]
[Site "Chess.com"]
[Date "2020.07.21"]
[Round "6"]
[White "Dr-Bassem"]
[Black "Ginger_GM"]
[Result "1-0"]
[WhiteElo "2830"]
[BlackElo "2584"]
[TimeControl "180+1"]
[EndTime "11:06:59 PDT"]
[Termination "Dr-Bassem won on time"]

1. e4 {[%clk 0:03:00.9]} 1... c5 {[%clk 0:02:58.6]} 2. Nf3 {[%clk 0:03:01.4]}
2... d6 {[%clk 0:02:58.4]} 3. g3 {[%clk 0:03:01.6]} 3... Nc6 {[%clk 0:02:57.9]}
4. Bg2 {[%clk 0:03:01.9]} 4... g6 {[%clk 0:02:58.2]} 5. O-O {[%clk 0:03:02]}
5... Bg7 {[%clk 0:02:58.1]} 6. c3 {[%clk 0:03:02.8]} 6... e5 {[%clk 0:02:57.9]}
7. a3 {[%clk 0:03:03.3]} 7... Nge7 {[%clk 0:02:56.8]} 8. d3 {[%clk 0:03:02.7]}
8... O-O {[%clk 0:02:56.6]} 9. b4 {[%clk 0:03:03.3]} 9... h6 {[%clk 0:02:50.9]}
10. Nbd2 {[%clk 0:03:03.2]} 10... f5 {[%clk 0:02:44.7]} 11. Qb3+ {[%clk
0:02:41.2]} 11... Kh7 {[%clk 0:02:43.5]} 12. Bb2 {[%clk 0:02:28.9]} 12... f4
{[%clk 0:02:41.2]} 13. d4 {[%clk 0:02:28.5]} 13... g5 {[%clk 0:02:30.7]} 14. d5
{[%clk 0:02:27.4]} 14... Nb8 {[%clk 0:02:27.1]} 15. bxc5 {[%clk 0:02:27.3]}
15... dxc5 {[%clk 0:02:20.5]} 16. c4 {[%clk 0:01:52.5]} 16... Ng6 {[%clk
0:02:18.1]} 17. Ne1 {[%clk 0:01:47.8]} 17... h5 {[%clk 0:01:48]} 18. f3 {[%clk
0:01:43.4]} 18... fxg3 {[%clk 0:01:45.8]} 19. hxg3 {[%clk 0:01:41]} 19... h4
{[%clk 0:01:46.3]} 20. g4 {[%clk 0:01:35]} 20... Nf4 {[%clk 0:01:43.2]} 21. Nd3
{[%clk 0:01:35.3]} 21... Qd6 {[%clk 0:01:26.7]} 22. Nxf4 {[%clk 0:01:29.2]}
22... Rxf4 {[%clk 0:01:23.9]} 23. Nb1 {[%clk 0:01:03.7]} 23... Nd7 {[%clk
0:01:21.3]} 24. Nc3 {[%clk 0:01:03.4]} 24... a6 {[%clk 0:01:10.7]} 25. Ne2
{[%clk 0:01:00.5]} 25... Rf7 {[%clk 0:01:06.3]} 26. Bc1 {[%clk 0:00:57.4]} 26...
Bh6 {[%clk 0:01:02.8]} 27. a4 {[%clk 0:00:55.6]} 27... Nf8 {[%clk 0:01:01.9]}
28. Rb1 {[%clk 0:00:51.4]} 28... Rf6 {[%clk 0:00:52]} 29. Be3 {[%clk 0:00:38.4]}
29... Rb8 {[%clk 0:00:30.3]} 30. a5 {[%clk 0:00:34.1]} 30... Ng6 {[%clk
0:00:21]} 31. Qb6 {[%clk 0:00:25.8]} 31... Qe7 {[%clk 0:00:16.6]} 32. Qxc5
{[%clk 0:00:23.6]} 32... Qf7 {[%clk 0:00:13.5]} 33. Qa7 {[%clk 0:00:20.9]} 33...
h3 {[%clk 0:00:04.3]} 34. Bxh3 {[%clk 0:00:17]} 34... Rxf3 {[%clk 0:00:04.8]}
35. Qxb8 {[%clk 0:00:16.7]} 35... Nh4 {[%clk 0:00:03.3]} 36. Qxc8 {[%clk
0:00:14]} 1-0

[Event "*** SCC Grand Prix: Titled Tuesday Blitz"]
[Site "Chess.com"]
[Date "2020.07.21"]
[Round "6"]
[White "benko_008"]
[Black "VladimirBugayev"]
[Result "1-0"]
[WhiteElo "2429"]
[BlackElo "2155"]
[TimeControl "180+1"]
[EndTime "11:07:01 PDT"]
[Termination "benko_008 won on time"]

1. d4 {[%clk 0:03:00.9]} 1... d5 {[%clk 0:02:59.5]} 2. c4 {[%clk 0:03:00.6]}
2... c6 {[%clk 0:02:59.8]} 3. cxd5 {[%clk 0:03:00.3]} 3... cxd5 {[%clk
0:02:59.4]} 4. Bf4 {[%clk 0:03:00.5]} 4... Nc6 {[%clk 0:02:59.3]} 5. e3 {[%clk
0:03:00.4]} 5... a6 {[%clk 0:02:58]} 6. Nc3 {[%clk 0:03:00.1]} 6... Nf6 {[%clk
0:02:57.2]} 7. Be2 {[%clk 0:03:00.1]} 7... Bf5 {[%clk 0:02:55.3]} 8. g4 {[%clk
0:02:48.4]} 8... Be4 {[%clk 0:02:37.1]} 9. f3 {[%clk 0:02:20.8]} 9... Bg6 {[%clk
0:02:35.9]} 10. h4 {[%clk 0:02:19]} 10... h6 {[%clk 0:02:34.9]} 11. h5 {[%clk
0:02:12.7]} 11... Bh7 {[%clk 0:02:33.3]} 12. Bd3 {[%clk 0:02:01.8]} 12... Bxd3
{[%clk 0:02:29]} 13. Qxd3 {[%clk 0:02:02.7]} 13... e6 {[%clk 0:02:29.2]} 14.
Nge2 {[%clk 0:02:02.2]} 14... Bd6 {[%clk 0:02:29.3]} 15. Kf2 {[%clk 0:01:54.9]}
15... Qc7 {[%clk 0:01:44.8]} 16. Rac1 {[%clk 0:01:49.3]} 16... Rd8 {[%clk
0:01:44.1]} 17. Bxd6 {[%clk 0:01:43.2]} 17... Qxd6 {[%clk 0:01:43.3]} 18. Ng3
{[%clk 0:01:34.2]} 18... Kd7 {[%clk 0:00:41.5]} 19. Na4 {[%clk 0:01:29.6]} 19...
Kc8 {[%clk 0:00:40]} 20. Nc5 {[%clk 0:01:24.6]} 20... Kb8 {[%clk 0:00:37.5]} 21.
Rc3 {[%clk 0:01:18.8]} 21... Nd7 {[%clk 0:00:30]} 22. Nxa6+ {[%clk 0:01:01.7]}
22... bxa6 {[%clk 0:00:29.6]} 23. Qxa6 {[%clk 0:01:00.3]} 23... Kc7 {[%clk
0:00:17.8]} 24. Qa7+ {[%clk 0:00:38.7]} 24... Kc8 {[%clk 0:00:16.5]} 25. b4
{[%clk 0:00:24.3]} 25... Qc7 {[%clk 0:00:09.8]} 26. Qa6+ {[%clk 0:00:20.6]}
26... Kb8 {[%clk 0:00:04.5]} 27. Rxc6 {[%clk 0:00:18.4]} 27... Qb7 {[%clk
0:00:04.8]} 28. Qa4 {[%clk 0:00:16.9]} 28... Nb6 {[%clk 0:00:02.5]} 29. Qb5
{[%clk 0:00:15.7]} 29... Nc4 {[%clk 0:00:02.5]} 30. Qxb7+ {[%clk 0:00:14.2]}
30... Kxb7 {[%clk 0:00:03.2]} 31. Rc5 {[%clk 0:00:15]} 31... Ra8 {[%clk
0:00:03]} 32. Ra1 {[%clk 0:00:14.7]} 32... Ra3 {[%clk 0:00:03]} 33. Nf1 {[%clk
0:00:14.1]} 33... Rha8 {[%clk 0:00:01.7]} 34. Kg3 {[%clk 0:00:12.8]} 34... Rxa2
{[%clk 0:00:02]} 35. Rxa2 {[%clk 0:00:12.7]} 35... Rxa2 {[%clk 0:00:02.2]} 36.
b5 {[%clk 0:00:13.1]} 36... Rb2 {[%clk 0:00:02]} 37. Nh2 {[%clk 0:00:10.3]} 1-0

[Event "*** SCC Grand Prix: Titled Tuesday Blitz"]
[Site "Chess.com"]
[Date "2020.07.21"]
[Round "6"]
[White "RubensCezila"]
[Black "ManuDavid2910"]
[Result "0-1"]
[WhiteElo "2569"]
[BlackElo "2701"]
[TimeControl "180+1"]
[EndTime "11:07:02 PDT"]
[Termination "ManuDavid2910 won on time"]

1. c4 {[%clk 0:03:00.9]} 1... Nf6 {[%clk 0:02:59.2]} 2. Nc3 {[%clk 0:02:52.5]}
2... e6 {[%clk 0:03:00.1]} 3. e3 {[%clk 0:02:51.4]} 3... d5 {[%clk 0:03:01]} 4.
Nf3 {[%clk 0:02:49.7]} 4... c5 {[%clk 0:03:01.2]} 5. cxd5 {[%clk 0:02:49.7]}
5... exd5 {[%clk 0:03:02.1]} 6. d4 {[%clk 0:02:50.3]} 6... Nc6 {[%clk
0:03:02.3]} 7. dxc5 {[%clk 0:02:49.1]} 7... Bxc5 {[%clk 0:03:03.2]} 8. Be2
{[%clk 0:02:49.1]} 8... O-O {[%clk 0:03:03.4]} 9. O-O {[%clk 0:02:49.6]} 9...
Re8 {[%clk 0:03:03.4]} 10. Nb5 {[%clk 0:02:47.5]} 10... Ne4 {[%clk 0:03:02.3]}
11. Nbd4 {[%clk 0:02:45.3]} 11... Qf6 {[%clk 0:03:01.9]} 12. Nxc6 {[%clk
0:02:37.7]} 12... bxc6 {[%clk 0:03:02.8]} 13. Qa4 {[%clk 0:02:35]} 13... Bb6
{[%clk 0:02:56.8]} 14. Bd3 {[%clk 0:02:16.8]} 14... Bg4 {[%clk 0:02:49.6]} 15.
Nd4 {[%clk 0:02:14.2]} 15... Bd7 {[%clk 0:02:43.9]} 16. Qc2 {[%clk 0:01:51.3]}
16... c5 {[%clk 0:02:41.7]} 17. Bxe4 {[%clk 0:01:45.1]} 17... Rxe4 {[%clk
0:02:42.6]} 18. Ne2 {[%clk 0:01:42.6]} 18... Rae8 {[%clk 0:02:33.8]} 19. Ng3
{[%clk 0:01:41.3]} 19... Rh4 {[%clk 0:02:33.3]} 20. Rd1 {[%clk 0:01:32.1]} 20...
d4 {[%clk 0:02:27.7]} 21. exd4 {[%clk 0:01:27.6]} 21... cxd4 {[%clk 0:02:28.6]}
22. Bd2 {[%clk 0:01:16.7]} 22... d3 {[%clk 0:02:23.6]} 23. Qxd3 {[%clk
0:01:12.2]} 23... Qxf2+ {[%clk 0:02:17.6]} 24. Kh1 {[%clk 0:01:11.8]} 24... Bc6
{[%clk 0:02:18]} 25. Rg1 {[%clk 0:01:06.2]} 25... Rd8 {[%clk 0:01:15.9]} 26. Qc3
{[%clk 0:00:55.6]} 26... Qxd2 {[%clk 0:01:05.7]} 27. Qxc6 {[%clk 0:00:47]} 27...
Bxg1 {[%clk 0:01:04.3]} 28. Rxg1 {[%clk 0:00:43.3]} 28... Qxb2 {[%clk
0:00:59.6]} 29. Nf5 {[%clk 0:00:32.9]} 29... Rb4 {[%clk 0:00:46.1]} 30. Qc7
{[%clk 0:00:23.6]} 30... Rbb8 {[%clk 0:00:42.4]} 31. Re1 {[%clk 0:00:18.4]}
31... Qf2 {[%clk 0:00:36.9]} 32. Ne7+ {[%clk 0:00:10.2]} 32... Kh8 {[%clk
0:00:36.6]} 33. Rg1 {[%clk 0:00:09.5]} 33... Re8 {[%clk 0:00:33.6]} 34. Nc6
{[%clk 0:00:09.3]} 34... Rbc8 {[%clk 0:00:33.2]} 35. Qd7 {[%clk 0:00:09.1]}
35... a6 {[%clk 0:00:28.3]} 36. h3 {[%clk 0:00:08.9]} 36... Qc5 {[%clk
0:00:25.7]} 37. Na7 {[%clk 0:00:05.9]} 37... Rcd8 {[%clk 0:00:23.7]} 38. Qxf7
{[%clk 0:00:05.8]} 38... Re7 {[%clk 0:00:22.6]} 0-1

[Event "*** SCC Grand Prix: Titled Tuesday Blitz"]
[Site "Chess.com"]
[Date "2020.07.21"]
[Round "6"]
[White "Karacsonyi_Gellert"]
[Black "DenisQ"]
[Result "0-1"]
[WhiteElo "2455"]
[BlackElo "2631"]
[TimeControl "180+1"]
[EndTime "11:07:03 PDT"]
[Termination "DenisQ won on time"]

1. e4 {[%clk 0:03:00.9]} 1... c6 {[%clk 0:02:58.8]} 2. Nc3 {[%clk 0:03:00]} 2...
d5 {[%clk 0:02:59.4]} 3. Nf3 {[%clk 0:03:00.9]} 3... Bg4 {[%clk 0:02:58]} 4. h3
{[%clk 0:02:59.7]} 4... Bh5 {[%clk 0:02:58]} 5. g4 {[%clk 0:02:58.9]} 5... dxe4
{[%clk 0:02:53.1]} 6. Nxe4 {[%clk 0:02:58.1]} 6... Bg6 {[%clk 0:02:52.6]} 7. Ng3
{[%clk 0:02:56]} 7... Nf6 {[%clk 0:02:47.5]} 8. d4 {[%clk 0:02:53.8]} 8... e6
{[%clk 0:02:46.3]} 9. c3 {[%clk 0:02:53.7]} 9... Bd6 {[%clk 0:02:42.7]} 10. Bg5
{[%clk 0:02:54]} 10... Nbd7 {[%clk 0:02:37.4]} 11. h4 {[%clk 0:02:53.8]} 11...
h6 {[%clk 0:02:30.3]} 12. h5 {[%clk 0:02:40.4]} 12... Bh7 {[%clk 0:02:15.4]} 13.
Bh4 {[%clk 0:02:40.4]} 13... Qb6 {[%clk 0:02:10.8]} 14. Qd2 {[%clk 0:02:32.7]}
14... Nxg4 {[%clk 0:02:08.6]} 15. Bh3 {[%clk 0:02:25.5]} 15... Ngf6 {[%clk
0:02:00.6]} 16. O-O {[%clk 0:02:21.1]} 16... O-O {[%clk 0:01:58.7]} 17. Kh1
{[%clk 0:02:12.8]} 17... Ne4 {[%clk 0:01:53.7]} 18. Qe2 {[%clk 0:01:55.8]} 18...
Ndf6 {[%clk 0:01:43.7]} 19. Bxf6 {[%clk 0:01:50.4]} 19... Nxf6 {[%clk
0:01:33.2]} 20. Rg1 {[%clk 0:01:47.8]} 20... c5 {[%clk 0:01:31.3]} 21. Rg2
{[%clk 0:01:43.6]} 21... cxd4 {[%clk 0:01:23.5]} 22. Nxd4 {[%clk 0:01:30.7]}
22... Rad8 {[%clk 0:01:18.3]} 23. Rag1 {[%clk 0:01:29.5]} 23... Kh8 {[%clk
0:01:18]} 24. Nf1 {[%clk 0:01:19.2]} 24... Rg8 {[%clk 0:01:16.2]} 25. Ne3 {[%clk
0:00:39.3]} 25... Qc5 {[%clk 0:01:14.9]} 26. Bxe6 {[%clk 0:00:31.1]} 26... fxe6
{[%clk 0:01:08.1]} 27. Nxe6 {[%clk 0:00:32]} 27... Qxh5+ {[%clk 0:01:05.9]} 28.
Qxh5 {[%clk 0:00:31.4]} 28... Nxh5 {[%clk 0:01:06.8]} 29. Nxd8 {[%clk
0:00:19.2]} 29... Rxd8 {[%clk 0:01:07.7]} 30. f3 {[%clk 0:00:17]} 30... Bc5
{[%clk 0:01:02.9]} 31. Re1 {[%clk 0:00:16.1]} 31... Nf4 {[%clk 0:01:01.5]} 32.
Rg4 {[%clk 0:00:13.5]} 32... g5 {[%clk 0:00:58.3]} 33. Ng2 {[%clk 0:00:10.3]}
33... Nd3 {[%clk 0:00:55.3]} 34. Re2 {[%clk 0:00:03.4]} 34... Nf2+ {[%clk
0:00:54.5]} 35. Rxf2 {[%clk 0:00:03.8]} 35... Bxf2 {[%clk 0:00:53.9]} 36. Kh2
{[%clk 0:00:03]} 36... Rd2 {[%clk 0:00:52.8]} 37. Rb4 {[%clk 0:00:02.3]} 37...
b6 {[%clk 0:00:52.4]} 38. Rc4 {[%clk 0:00:01.6]} 38... Bd3 {[%clk 0:00:49.3]}
39. Rc8+ {[%clk 0:00:01.7]} 39... Kg7 {[%clk 0:00:49.5]} 40. Rc7+ {[%clk
0:00:01.9]} 40... Kg6 {[%clk 0:00:49.8]} 41. Rc6+ {[%clk 0:00:01.6]} 41... Kh5
{[%clk 0:00:47.6]} 42. Rc8 {[%clk 0:00:01.4]} 42... Bf1 {[%clk 0:00:46.8]} 43.
Kh3 {[%clk 0:00:01.4]} 43... Bh4 {[%clk 0:00:44.1]} 44. Kh2 {[%clk 0:00:01.6]}
44... Rxg2+ {[%clk 0:00:43.5]} 45. Kh1 {[%clk 0:00:02.5]} 45... Bf2 {[%clk
0:00:37.7]} 46. a4 {[%clk 0:00:01.7]} 46... Bg3 {[%clk 0:00:32.4]} 0-1

[Event "*** SCC Grand Prix: Titled Tuesday Blitz"]
[Site "Chess.com"]
[Date "2020.07.21"]
[Round "6"]
[White "Anton_Demchenko"]
[Black "Gorin_Leonid"]
[Result "1-0"]
[WhiteElo "2827"]
[BlackElo "2582"]
[TimeControl "180+1"]
[EndTime "11:07:05 PDT"]
[Termination "Anton_Demchenko won on time"]

1. e4 {[%clk 0:03:00.9]} 1... e5 {[%clk 0:02:59.7]} 2. Nf3 {[%clk 0:03:01.3]}
2... Nc6 {[%clk 0:02:59.8]} 3. Bc4 {[%clk 0:03:01.9]} 3... Bc5 {[%clk
0:02:59.3]} 4. d3 {[%clk 0:03:02.8]} 4... Nf6 {[%clk 0:02:58.8]} 5. Bg5 {[%clk
0:03:02.2]} 5... d6 {[%clk 0:02:56.7]} 6. Nbd2 {[%clk 0:03:01.4]} 6... h6 {[%clk
0:02:56.4]} 7. Bh4 {[%clk 0:03:01.3]} 7... a6 {[%clk 0:02:54.8]} 8. c3 {[%clk
0:03:00.8]} 8... Ba7 {[%clk 0:02:54.4]} 9. a4 {[%clk 0:02:57.3]} 9... Qe7 {[%clk
0:02:53.8]} 10. O-O {[%clk 0:02:55.8]} 10... Be6 {[%clk 0:02:52.7]} 11. b4
{[%clk 0:02:55.3]} 11... O-O {[%clk 0:02:50.3]} 12. Rb1 {[%clk 0:02:54.6]} 12...
Kh7 {[%clk 0:02:44.7]} 13. Re1 {[%clk 0:02:53]} 13... Rg8 {[%clk 0:02:43.6]} 14.
b5 {[%clk 0:02:50]} 14... axb5 {[%clk 0:02:38]} 15. axb5 {[%clk 0:02:50.5]}
15... Nb8 {[%clk 0:02:32.2]} 16. d4 {[%clk 0:02:50.3]} 16... Nbd7 {[%clk
0:02:26.1]} 17. Qc2 {[%clk 0:02:39.4]} 17... Bxc4 {[%clk 0:02:00.4]} 18. Nxc4
{[%clk 0:02:39]} 18... Qe6 {[%clk 0:02:00.4]} 19. Ne3 {[%clk 0:02:28.7]} 19...
exd4 {[%clk 0:01:46]} 20. e5+ {[%clk 0:01:27.8]} 20... g6 {[%clk 0:01:33.2]} 21.
cxd4 {[%clk 0:01:16]} 21... dxe5 {[%clk 0:01:30.4]} 22. dxe5 {[%clk 0:01:16.3]}
22... Nh5 {[%clk 0:01:21.2]} 23. Qxc7 {[%clk 0:01:01.9]} 23... Rgc8 {[%clk
0:00:57.4]} 24. Qxb7 {[%clk 0:00:56.5]} 24... Bxe3 {[%clk 0:00:54.7]} 25. fxe3
{[%clk 0:00:42.7]} 25... Rab8 {[%clk 0:00:49.9]} 26. Qe4 {[%clk 0:00:36.5]}
26... Rc4 {[%clk 0:00:41.6]} 27. Qd3 {[%clk 0:00:24.9]} 27... Rc5 {[%clk
0:00:25]} 28. Nd4 {[%clk 0:00:21.5]} 28... Qd5 {[%clk 0:00:20.2]} 29. e6 {[%clk
0:00:20.7]} 29... fxe6 {[%clk 0:00:16.8]} 30. Rf1 {[%clk 0:00:20.5]} 30... Rf8
{[%clk 0:00:12.6]} 31. Rxf8 {[%clk 0:00:18.4]} 31... Nxf8 {[%clk 0:00:12.3]} 32.
Qf1 {[%clk 0:00:19.2]} 32... Kg8 {[%clk 0:00:08.5]} 33. b6 {[%clk 0:00:18.5]}
33... Rc8 {[%clk 0:00:08.3]} 34. g4 {[%clk 0:00:16.9]} 34... Ng7 {[%clk
0:00:07.7]} 35. Bg3 {[%clk 0:00:16.8]} 35... Qe4 {[%clk 0:00:07]} 36. b7 {[%clk
0:00:12.6]} 36... Qxe3+ {[%clk 0:00:05.3]} 37. Bf2 {[%clk 0:00:13.1]} 37... Qe4
{[%clk 0:00:04.5]} 38. bxc8=Q {[%clk 0:00:13.7]} 38... Qxg4+ {[%clk 0:00:04.7]}
39. Qg2 {[%clk 0:00:14.2]} 1-0